fUSD/lending_fUSD_20240412
["ID","MTS","AMOUNT","RATE_DAILY","PERIOD"]
[322305936,1712943071189,-519.66847684,0.00048219,31]
[322305937,1712943071199,-500.0,0.00048219,31]
[322305938,1712943071208,-500.0,0.00048219,31]
[322305939,1712943071217,-500.0,0.00048219,31]
[322305940,1712943071229,-500.0,0.00048219,31]
[322305941,1712943071238,-500.0,0.00048219,31]
[322305942,1712943071247,-500.0,0.00048219,31]
[322305943,1712943071257,-500.0,0.00048219,31]
[322305944,1712943071266,-500.0,0.00048219,31]
[322305945,1712943071275,-500.0,0.00048219,31]
[322305946,1712943071284,-500.0,0.00048219,31]
[322305947,1712943071293,-500.0,0.00048219,31]
[322305948,1712943071302,-500.0,0.00048219,31]
[322305949,1712943071312,-533.02,0.00048219,2]
[322305950,1712943071321,-500.0,0.00048219,31]
[322305951,1712943071331,-500.0,0.00048219,31]
[322305952,1712943071341,-500.0,0.00048219,31]
[322305953,1712943071350,-500.0,0.00048219,31]
[322305954,1712943071359,-500.0,0.00048219,31]
[322305955,1712943071369,-953.04,0.00048219,31]
[322305956,1712943071378,-500.0,0.00048219,31]
[322305957,1712943071387,-500.0,0.00048219,31]
[322305958,1712943071396,-500.0,0.00048219,31]
[322305959,1712943071406,-500.0,0.00048219,31]
[322305960,1712943071415,-500.0,0.00048219,31]
[322305961,1712943071424,-500.0,0.00048219,31]
[322305962,1712943071435,-169.22798993,0.00048219,31]
[322305963,1712943071446,-500.0,0.00048219,31]
[322305964,1712943071455,-500.0,0.00048219,31]
[322305965,1712943071464,-500.0,0.00048219,31]
[322305966,1712943071475,-500.0,0.00048219,31]
[322305967,1712943071484,-500.0,0.00048219,31]
[322305968,1712943071493,-500.0,0.00048219,31]
[322305969,1712943071505,-486.70639328,0.00048219,31]
[322305970,1712943071514,-500.0,0.00048219,31]
[322305971,1712943071524,-153.69544486,0.00048219,31]
[322305972,1712943071533,-500.0,0.00048219,31]
[322305973,1712943071541,-503.14,0.00048219,31]
[322305974,1712943071553,-500.0,0.00048219,31]
[322305975,1712943071563,-500.0,0.00048219,31]
[322305976,1712943071572,-500.0,0.00048219,31]
[322305977,1712943071581,-500.0,0.00048219,31]
[322305978,1712943071594,-500.0,0.00048219,31]
[322305979,1712943071605,-500.0,0.00048219,31]
[322305980,1712943071615,-500.0,0.00048219,31]
[322305981,1712943071625,-500.0,0.00048219,31]
[322305982,1712943071634,-500.0,0.00048219,31]
[322305983,1712943071645,-500.0,0.00048219,31]
[322305984,1712943071655,-500.0,0.00048219,31]
[322305985,1712943071665,-500.0,0.00048219,31]
[322305986,1712943071674,-500.0,0.00048219,31]
[322305987,1712943071686,-547.94,0.00048219,31]
[322305988,1712943071697,-500.0,0.00048219,31]
[322305989,1712943071706,-500.0,0.00048219,31]
[322305990,1712943071717,-500.0,0.00048219,31]
[322305991,1712943071726,-500.0,0.00048219,2]
[322305992,1712943071736,-500.0,0.00048219,31]
[322305993,1712943071745,-500.0,0.00048219,31]
[322305994,1712943071753,-500.0,0.00048219,31]
[322305995,1712943071762,-500.0,0.00048219,31]
[322305996,1712943071771,-500.0,0.00048219,31]
[322305997,1712943071780,-500.0,0.00048219,31]
[322305998,1712943071789,-500.0,0.00048219,31]
[322305999,1712943071798,-500.0,0.00048219,31]
[322306000,1712943071807,-506.79,0.00048219,31]
[322306001,1712943071818,-500.0,0.00048219,31]
[322306002,1712943071828,-500.0,0.00048219,31]
[322306003,1712943071837,-500.0,0.00048219,31]
[322306004,1712943071853,-500.0,0.00048219,31]
[322306005,1712943071863,-753.97,0.00048219,31]
[322306006,1712943071873,-500.0,0.00048219,31]
[322306007,1712943071882,-761.02,0.00048219,31]
[322306008,1712943071891,-1116.32,0.00048219,31]
[322306009,1712943071901,-500.0,0.00048219,31]
[322306010,1712943071911,-1571.11,0.00048219,31]
[322306011,1712943071920,-525.84,0.00048219,31]
[322306012,1712943071930,-500.0,0.00048219,31]
[322306013,1712943071945,-771.53,0.00048219,31]
[322306014,1712943071955,-688.0,0.00048219,31]
[322306015,1712943071966,-500.0,0.00048219,31]
[322306016,1712943071978,-768.13,0.00048219,31]
[322306017,1712943071988,-4824.5,0.00048219,31]
[322306018,1712943071997,-500.0,0.00048219,31]
[322306019,1712943072007,-1199.86,0.00048219,31]
[322306020,1712943072016,-500.0,0.00048219,31]
[322306021,1712943072025,-500.0,0.00048219,31]
[322306022,1712943072035,-500.0,0.00048219,31]
[322306023,1712943072045,-575.91,0.00048219,31]
[322306024,1712943072054,-500.0,0.00048219,31]
[322306025,1712943072063,-585.03,0.00048219,31]
[322306026,1712943072072,-664.52,0.00048219,31]
[322306027,1712943072082,-1185.31,0.00048219,31]
[322306028,1712943072091,-690.39,0.00048219,31]
[322306029,1712943072192,-500.0,0.00048219,31]
[322306030,1712943072202,-2922.2,0.00048219,31]
[322306031,1712943072214,-500.0,0.00048219,31]
[322306032,1712943072223,-1072.1,0.00048219,31]
[322306033,1712943072232,-630.53,0.00048219,31]
[322306034,1712943072241,-500.0,0.00048219,31]
[322306035,1712943072250,-817.79,0.00048219,31]
[322306036,1712943072260,-500.0,0.00048219,31]
[322306037,1712943072272,-246.02157366,0.00048219,31]
[322306038,1712943072281,-500.0,0.00048219,31]
[322306039,1712943072291,-11147.25,0.00048219,31]
[322306040,1712943072301,-2674.46,0.00048219,31]
[322306041,1712943072311,-1664.34,0.00048219,31]
[322306042,1712943072321,-500.0,0.00048219,31]
[322306043,1712943072331,-500.0,0.00048219,31]
[322306044,1712943072341,-500.0,0.00048219,31]
[322306045,1712943072351,-1490.98,0.00048219,31]
[322306046,1712943072360,-500.0,0.00048219,31]
[322306047,1712943072370,-500.0,0.00048219,31]
[322306048,1712943072380,-532.17,0.00048219,31]
[322306049,1712943072390,-2085.05,0.00048219,31]
[322306050,1712943072399,-500.0,0.00048219,31]
[322306051,1712943072409,-500.0,0.00048219,31]
[322306052,1712943072419,-842.21,0.00048219,31]
[322306053,1712943072429,-500.0,0.00048219,31]
[322306054,1712943072446,-500.0,0.00048219,21]
[322306055,1712943072455,-707.65,0.00048219,31]
[322306056,1712943072468,-183.46,0.00048219,31]
[322306057,1712943072479,-500.0,0.00048219,31]
[322306058,1712943072490,-500.0,0.00048219,31]
[322306059,1712943072503,-500.0,0.00048219,31]
[322306060,1712943072515,-651.77,0.00048219,31]
[322306061,1712943072526,-754.73,0.00048219,31]
[322306062,1712943072536,-500.0,0.00048219,31]
[322306063,1712943072547,-930.65,0.00048219,31]
[322306064,1712943072558,-566.71,0.00048219,31]
[322306065,1712943072568,-500.0,0.00048219,31]
[322306066,1712943072580,-500.0,0.00048219,31]
[322306067,1712943072591,-500.0,0.00048219,31]
[322306068,1712943072601,-500.0,0.00048219,31]
[322306069,1712943072611,-500.0,0.00048219,31]
[322306070,1712943072620,-500.0,0.00048219,31]
[322306071,1712943072631,-500.0,0.00048219,31]
[322306072,1712943072641,-500.0,0.00048219,31]
[322306073,1712943072650,-500.0,0.00048219,31]
[322306074,1712943072660,-500.0,0.00048219,7]
[322306075,1712943072670,-500.0,0.00048219,31]
[322306076,1712943072680,-500.0,0.00048219,31]
[322306077,1712943072694,-558.76,0.00048219,31]
[322306078,1712943072704,-500.0,0.00048219,31]
[322306079,1712943072714,-2201.95,0.00048219,31]
[322306080,1712943072723,-511.97603334,0.00048219,31]
[322306081,1712943072736,-500.0,0.00048219,31]
[322306082,1712943072745,-500.0,0.00048219,31]
[322306083,1712943072755,-500.0,0.00048219,31]
[322306084,1712943072764,-500.0,0.00048219,31]
[322306085,1712943072774,-1733.44,0.00048219,31]
[322306086,1712943072783,-500.0,0.00048219,31]
[322306087,1712943072793,-500.0,0.00048219,31]
[322306088,1712943072803,-1511.61,0.00048219,31]
[322306089,1712943072812,-500.0,0.00048219,31]
[322306090,1712943072823,-500.0,0.00048219,31]
[322306091,1712943072833,-500.0,0.00048219,31]
[322306092,1712943072843,-500.0,0.00048219,31]
[322306093,1712943072853,-500.0,0.00048219,31]
[322306094,1712943072863,-1300.84,0.00048219,31]
[322306095,1712943072872,-500.0,0.00048219,31]
[322306096,1712943072882,-558.49,0.00048219,31]
[322306097,1712943072895,-959.18,0.00048219,31]
[322306098,1712943072905,-500.0,0.00048219,31]
[322306099,1712943072914,-921.12,0.00048219,31]
[322306100,1712943072923,-500.0,0.00048219,31]
[322306101,1712943072935,-500.0,0.00048219,31]
[322306102,1712943072947,-500.0,0.00048219,31]
[322306103,1712943072957,-802.81,0.00048219,31]
[322306104,1712943072967,-439.70412937,0.00048219,31]
[322306105,1712943072977,-2186.79,0.00048219,31]
[322306106,1712943072987,-500.0,0.00048219,31]
[322306107,1712943072997,-1066.91,0.00048219,31]
[322306108,1712943073007,-2219.87,0.00048219,31]
[322306109,1712943073016,-500.0,0.00048219,31]
[322306110,1712943073025,-500.0,0.00048219,31]
[322306111,1712943073035,-500.0,0.00048219,31]
[322306112,1712943073044,-593.49,0.00048219,31]
[322306113,1712943073054,-500.0,0.00048219,31]
[322306114,1712943073063,-6085.26,0.00048219,31]
[322306115,1712943073073,-500.0,0.00048219,31]
[322306116,1712943073083,-500.0,0.00048219,31]
[322306117,1712943073093,-500.0,0.00048219,31]
[322306118,1712943073103,-500.0,0.00048219,31]
[322306119,1712943073112,-500.0,0.00048219,31]
[322306120,1712943073122,-500.0,0.00048219,31]
[322306121,1712943073132,-500.0,0.00048219,31]
[322306122,1712943073142,-500.0,0.00048219,31]
[322306123,1712943073152,-683.18,0.00048219,31]
[322306124,1712943073161,-459.20087194,0.00048219,31]
[322306125,1712943073171,-1289.09,0.00048219,31]
[322306126,1712943073180,-2118.68,0.00048219,31]
[322306127,1712943073194,-500.0,0.00048219,31]
[322306128,1712943073204,-842.4,0.00048219,31]
[322306129,1712943073215,-542.64,0.00048219,31]
[322306130,1712943073225,-500.0,0.00048219,31]
[322306131,1712943073234,-674.83,0.00048219,31]
[322306132,1712943073245,-1964.08,0.00048219,31]
[322306133,1712943073254,-500.0,0.00048219,31]
[322306134,1712943073264,-500.0,0.00048219,31]
[322306135,1712943073273,-2132.39,0.00048219,31]
[322306136,1712943073283,-500.0,0.00048388,30]
[322306137,1712943073292,-153.45242309,0.00048433,30]
[322306138,1712943073305,-302.0,0.00048435,4]
[322306139,1712943073316,-153.40820887,0.00048445,30]
[322306140,1712943073325,-15294.21085197,0.00048475,2]
[322306141,1712943073335,-500.0,0.00048493,31]
[322306142,1712943073344,-500.0,0.00048493,31]
[322306143,1712943073356,-500.0,0.00048493,31]
[322306144,1712943073366,-250.91,0.00048493,31]
[322306145,1712943073375,-500.0,0.00048493,31]
[322306146,1712943073385,-500.0,0.00048493,31]
[322306147,1712943073395,-500.0,0.00048493,31]
[322306148,1712943073405,-502.0,0.00048493,31]
[322306149,1712943073415,-500.0,0.00048493,31]
[322306150,1712943073424,-1000.0,0.00048493,120]
[322306151,1712943073434,-500.0,0.00048493,31]
[322306152,1712943073448,-608.51,0.00048493,31]
[322306153,1712943073458,-536.64,0.00048493,31]
[322306154,1712943073470,-500.0,0.00048493,31]
[322306155,1712943073480,-500.0,0.00048493,31]
[322306156,1712943073490,-500.0,0.00048493,31]
[322306157,1712943073499,-500.0,0.00048493,31]
[322306158,1712943073510,-500.0,0.00048493,31]
[322306159,1712943073520,-500.0,0.00048493,31]
[322306160,1712943073530,-500.0,0.00048493,31]
[322306161,1712943073538,-500.0,0.00048493,31]
[322306162,1712943073548,-500.0,0.00048493,31]
[322306163,1712943073560,-500.0,0.00048493,31]
[322306164,1712943073569,-500.0,0.00048493,31]
[322306165,1712943073578,-500.0,0.00048493,31]
[322306166,1712943073588,-533.02,0.00048493,2]
[322306167,1712943073598,-500.0,0.00048493,31]
[322306168,1712943073607,-500.0,0.00048493,31]
[322306169,1712943073617,-500.0,0.00048493,31]
[322306170,1712943073626,-500.0,0.00048493,31]
[322306171,1712943073636,-500.0,0.00048493,31]
[322306172,1712943073646,-953.04,0.00048493,31]
[322306173,1712943073655,-500.0,0.00048493,31]
[322306174,1712943073664,-500.0,0.00048493,31]
[322306175,1712943073674,-625.42753241,0.00048493,31]
[322306176,1712943073683,-500.0,0.00048493,31]
[322306177,1712943073697,-500.0,0.00048493,31]
[322306178,1712943073708,-500.0,0.00048493,31]
[322306179,1712943073718,-500.0,0.00048493,31]
[322306180,1712943073728,-500.0,0.00048493,31]
[322306181,1712943073737,-500.0,0.00048493,31]
[322306182,1712943073747,-500.0,0.00048493,31]
[322306183,1712943073757,-500.0,0.00048493,31]
[322306184,1712943073861,-231.5923692,0.00048493,31]
[322306185,1712943073872,-500.0,0.00048493,31]
[322306186,1712943073881,-503.14,0.00048493,31]
[322306187,1712943073891,-500.0,0.00048493,31]
[322306188,1712943073900,-500.0,0.00048493,31]
[322306189,1712943073910,-500.0,0.00048493,31]
[322306190,1712943073919,-518.81704559,0.00048493,31]
[322306191,1712943073929,-500.0,0.00048493,31]
[322306192,1712943073940,-218.38371775,0.00048493,31]
[322306193,1712943073949,-500.0,0.00048493,31]
[322306194,1712943073959,-500.0,0.00048493,31]
[322306195,1712943073968,-500.0,0.00048493,31]
[322306196,1712943073980,-500.0,0.00048493,31]
[322306197,1712943073989,-500.0,0.00048493,31]
[322306198,1712943073997,-500.0,0.00048493,31]
[322306199,1712943074007,-547.94,0.00048493,31]
[322306200,1712943074017,-500.0,0.00048493,31]
[322306201,1712943074026,-500.0,0.00048493,31]
[322306202,1712943074036,-500.0,0.00048493,31]
[322306203,1712943074045,-500.0,0.00048493,2]
[322306204,1712943074055,-500.0,0.00048493,31]
[322306205,1712943074065,-500.0,0.00048493,31]
[322306206,1712943074075,-500.0,0.00048493,31]
[322306207,1712943074084,-500.0,0.00048493,31]
[322306208,1712943074094,-500.0,0.00048493,31]
[322306209,1712943074104,-500.0,0.00048493,31]
[322306210,1712943074114,-500.0,0.00048493,31]
[322306211,1712943074124,-500.0,0.00048493,31]
[322306212,1712943074135,-506.79,0.00048493,31]
[322306213,1712943074146,-500.0,0.00048493,31]
[322306214,1712943074157,-500.0,0.00048493,31]
[322306215,1712943074167,-500.0,0.00048493,31]
[322306216,1712943074178,-500.0,0.00048493,31]
[322306217,1712943074190,-753.97,0.00048493,31]
[322306218,1712943074200,-500.0,0.00048493,31]
[322306219,1712943074213,-761.02,0.00048493,31]
[322306220,1712943074222,-1116.32,0.00048493,31]
[322306221,1712943074233,-500.0,0.00048493,31]
[322306222,1712943074242,-1571.11,0.00048493,31]
[322306223,1712943074253,-525.84,0.00048493,31]
[322306224,1712943074262,-500.0,0.00048493,31]
[322306225,1712943074272,-771.53,0.00048493,31]
[322306226,1712943074282,-688.0,0.00048493,31]
[322306227,1712943074291,-500.0,0.00048493,31]
[322306228,1712943074301,-768.13,0.00048493,31]
[322306229,1712943074312,-4824.5,0.00048493,31]
[322306230,1712943074322,-500.0,0.00048493,31]
[322306231,1712943074332,-1199.86,0.00048493,31]
[322306232,1712943074342,-500.0,0.00048493,31]
[322306233,1712943074351,-500.0,0.00048493,31]
[322306234,1712943074361,-500.0,0.00048493,31]
[322306235,1712943074371,-575.91,0.00048493,31]
[322306236,1712943074380,-281.50390467,0.00048493,31]
[322306237,1712943074390,-664.52,0.00048493,31]
[322306238,1712943074399,-1185.31,0.00048493,31]
[322306239,1712943074409,-585.03,0.00048493,31]
[322306240,1712943074419,-690.39,0.00048493,31]
[322306241,1712943074429,-500.0,0.00048493,31]
[322306242,1712943074443,-2922.2,0.00048493,31]
[322306243,1712943074452,-500.0,0.00048493,31]
[322306244,1712943074462,-1072.1,0.00048493,31]
[322306245,1712943074472,-630.53,0.00048493,31]
[322306246,1712943074484,-500.0,0.00048493,31]
[322306247,1712943074494,-500.0,0.00048493,31]
[322306248,1712943074508,-817.79,0.00048493,31]
[322306249,1712943074519,-500.0,0.00048493,31]
[322306250,1712943074528,-11147.25,0.00048493,31]
[322306251,1712943074538,-2674.46,0.00048493,31]
[322306252,1712943074550,-1664.34,0.00048493,31]
[322306253,1712943074563,-500.0,0.00048493,31]
[322306254,1712943074574,-453.51065179,0.00048493,31]
[322306255,1712943074583,-500.0,0.00048493,31]
[322306256,1712943074594,-1490.98,0.00048493,31]
[322306257,1712943074608,-500.0,0.00048493,31]
[322306258,1712943074631,-500.0,0.00048493,31]
[322306259,1712943074650,-532.17,0.00048493,31]
[322306260,1712943074670,-2085.05,0.00048493,31]
[322306261,1712943074691,-500.0,0.00048493,31]
[322306262,1712943074709,-500.0,0.00048493,31]
[322306263,1712943074730,-842.21,0.00048493,31]
[322306264,1712943074748,-500.0,0.00048493,31]
[322306265,1712943074769,-500.0,0.00048493,21]
[322306266,1712943074788,-707.65,0.00048493,31]
[322306267,1712943074806,-628.40877,0.00048493,31]
[322306268,1712943074827,-500.0,0.00048493,31]
[322306269,1712943074848,-500.0,0.00048493,31]
[322306270,1712943074861,-754.73,0.00048493,31]
[322306271,1712943074877,-651.77,0.00048493,31]
[322306272,1712943074897,-500.0,0.00048493,31]
[322306273,1712943074912,-930.65,0.00048493,31]
[322306274,1712943074928,-566.71,0.00048493,31]
[322306275,1712943074949,-500.0,0.00048493,31]
[322306276,1712943074965,-500.0,0.00048493,31]
[322306277,1712943074980,-500.0,0.00048493,31]
[322306278,1712943074997,-500.0,0.00048493,31]
[322306279,1712943075015,-500.0,0.00048493,31]
[322306280,1712943075031,-500.0,0.00048493,31]
[322306281,1712943075046,-500.0,0.00048493,31]
[322306282,1712943075061,-500.0,0.00048493,31]
[322306283,1712943075075,-500.0,0.00048493,7]
[322306284,1712943075091,-500.0,0.00048493,31]
[322306285,1712943075107,-500.0,0.00048493,31]
[322306286,1712943075123,-558.76,0.00048493,31]
[322306287,1712943075140,-500.0,0.00048493,31]
[322306288,1712943075157,-2201.95,0.00048493,31]
[322306289,1712943075173,-500.0,0.00048493,31]
[322306290,1712943075194,-500.0,0.00048493,31]
[322306291,1712943075217,-500.0,0.00048493,31]
[322306292,1712943075235,-500.0,0.00048493,31]
[322306293,1712943075252,-1733.44,0.00048493,31]
[322306294,1712943075270,-500.0,0.00048493,31]
[322306295,1712943075280,-500.0,0.00048493,31]
[322306296,1712943075291,-1511.61,0.00048493,31]
[322306297,1712943075300,-500.0,0.00048493,31]
[322306298,1712943075312,-500.0,0.00048493,31]
[322306299,1712943075322,-500.0,0.00048493,31]
[322306300,1712943075333,-500.0,0.00048493,31]
[322306301,1712943075345,-500.0,0.00048493,31]
[322306302,1712943075355,-1300.84,0.00048493,31]
[322306303,1712943075366,-500.0,0.00048493,31]
[322306304,1712943075376,-558.49,0.00048493,31]
[322306305,1712943075387,-959.18,0.00048493,31]
[322306306,1712943075397,-500.0,0.00048493,31]
[322306307,1712943075407,-921.12,0.00048493,31]
[322306308,1712943075417,-500.0,0.00048493,31]
[322306309,1712943075427,-553.78145633,0.00048493,31]
[322306310,1712943075441,-500.0,0.00048493,31]
[322306311,1712943075452,-802.81,0.00048493,31]
[322306312,1712943075465,-2186.79,0.00048493,31]
[322306313,1712943075474,-500.0,0.00048493,31]
[322306314,1712943075485,-1066.91,0.00048493,31]
[322306315,1712943075495,-2219.87,0.00048493,31]
[322306316,1712943075508,-500.0,0.00048493,31]
[322306317,1712943075518,-500.0,0.00048493,31]
[322306318,1712943075528,-500.0,0.00048493,31]
[322306319,1712943075539,-593.49,0.00048493,31]
[322306320,1712943075550,-500.0,0.00048493,31]
[322306321,1712943075562,-6085.26,0.00048493,31]
[322306322,1712943075573,-500.0,0.00048493,31]
[322306323,1712943075583,-500.0,0.00048493,31]
[322306324,1712943075594,-500.0,0.00048493,31]
[322306325,1712943075604,-500.0,0.00048493,31]
[322306326,1712943075614,-500.0,0.00048493,31]
[322306327,1712943075930,-500.0,0.00048493,31]
[322306328,1712943075956,-500.0,0.00048493,31]
[322306329,1712943075970,-683.18,0.00048493,31]
[322306330,1712943075981,-1289.09,0.00048493,31]
[322306331,1712943075990,-2118.68,0.00048493,31]
[322306332,1712943075999,-500.0,0.00048493,31]
[322306333,1712943076009,-842.4,0.00048493,31]
[322306334,1712943076019,-542.64,0.00048493,31]
[322306335,1712943076028,-500.0,0.00048493,31]
[322306336,1712943076037,-674.83,0.00048493,31]
[322306337,1712943076046,-1964.08,0.00048493,31]
[322306338,1712943076055,-500.0,0.00048493,31]
[322306339,1712943076064,-500.0,0.00048493,31]
[322306340,1712943076074,-2132.39,0.00048493,31]
[322306341,1712943076084,-150.0,0.000485,9]
[322306342,1712943076093,-606.0,0.00048569,30]
[322306343,1712943076103,-322.0,0.00048569,30]
[322306344,1712943076112,-411.0,0.00048569,30]
[322306345,1712943076121,-204.8,0.00048603,120]
[322306346,1712943076131,-159.44386895,0.00048661,30]
[322306347,1712943076140,-516.07,0.00048661,30]
[322306348,1712943076149,-19006.93333653,0.000487,2]
[322306349,1712943076159,-16797.70184083,0.000487,2]
[322306350,1712943076168,-500.0,0.00048767,31]
[322306351,1712943076178,-500.0,0.00048767,31]
[322306352,1712943076189,-500.0,0.00048767,31]
[322306353,1712943076199,-500.0,0.00048767,31]
[322306354,1712943076208,-500.0,0.00048767,31]
[322306355,1712943076218,-500.0,0.00048767,31]
[322306356,1712943076229,-502.0,0.00048767,31]
[322306357,1712943076238,-500.0,0.00048767,31]
[322306358,1712943076247,-1000.0,0.00048767,120]
[322306359,1712943076256,-500.0,0.00048767,31]
[322306360,1712943076265,-608.51,0.00048767,31]
[322306361,1712943076274,-536.64,0.00048767,31]
[322306362,1712943076283,-500.0,0.00048767,31]
[322306363,1712943076292,-500.0,0.00048767,31]
[322306364,1712943076301,-500.0,0.00048767,31]
[322306365,1712943076311,-500.0,0.00048767,31]
[322306366,1712943076321,-500.0,0.00048767,31]
[322306367,1712943076330,-500.0,0.00048767,31]
[322306368,1712943076340,-500.0,0.00048767,31]
[322306369,1712943076349,-500.0,0.00048767,31]
[322306370,1712943076359,-500.0,0.00048767,31]
[322306371,1712943076368,-500.0,0.00048767,31]
[322306372,1712943076378,-500.0,0.00048767,31]
[322306373,1712943076387,-500.0,0.00048767,31]
[322306374,1712943076397,-533.02,0.00048767,2]
[322306375,1712943076407,-500.0,0.00048767,31]
[322306376,1712943076416,-500.0,0.00048767,31]
[322306377,1712943076425,-500.0,0.00048767,31]
[322306378,1712943076435,-500.0,0.00048767,31]
[322306379,1712943076449,-500.0,0.00048767,31]
[322306380,1712943076458,-953.04,0.00048767,31]
[322306381,1712943076467,-500.0,0.00048767,31]
[322306382,1712943076477,-500.0,0.00048767,31]
[322306383,1712943076488,-500.0,0.00048767,31]
[322306384,1712943076498,-500.0,0.00048767,31]
[322306385,1712943076510,-500.0,0.00048767,31]
[322306386,1712943076519,-500.0,0.00048767,31]
[322306387,1712943076527,-500.0,0.00048767,31]
[322306388,1712943076537,-290.19,0.00048767,31]
[322306389,1712943076547,-500.0,0.00048767,31]
[322306390,1712943076557,-500.0,0.00048767,31]
[322306391,1712943076569,-393.32227434,0.00048767,31]
[322306392,1712943076578,-503.14,0.00048767,31]
[322306393,1712943076587,-500.0,0.00048767,31]
[322306394,1712943076596,-500.0,0.00048767,31]
[322306395,1712943076606,-500.0,0.00048767,31]
[322306396,1712943076615,-500.0,0.00048767,31]
[322306397,1712943076625,-500.0,0.00048767,31]
[322306398,1712943076635,-500.0,0.00048767,31]
[322306399,1712943076645,-500.0,0.00048767,31]
[322306400,1712943076655,-500.0,0.00048767,31]
[322306401,1712943076666,-500.0,0.00048767,31]
[322306402,1712943076677,-500.0,0.00048767,31]
[322306403,1712943076687,-547.94,0.00048767,31]
[322306404,1712943076698,-500.0,0.00048767,31]
[322306405,1712943076708,-500.0,0.00048767,31]
[322306406,1712943076718,-500.0,0.00048767,31]
[322306407,1712943076731,-500.0,0.00048767,2]
[322306408,1712943076740,-500.0,0.00048767,31]
[322306409,1712943076749,-500.0,0.00048767,31]
[322306410,1712943076758,-500.0,0.00048767,31]
[322306411,1712943076767,-500.0,0.00048767,31]
[322306412,1712943076777,-500.0,0.00048767,31]
[322306413,1712943076786,-500.0,0.00048767,31]
[322306414,1712943076796,-500.0,0.00048767,31]
[322306415,1712943076805,-491.32171456,0.00048767,31]
[322306416,1712943076816,-506.79,0.00048767,31]
[322306417,1712943076826,-500.0,0.00048767,31]
[322306418,1712943076838,-500.0,0.00048767,31]
[322306419,1712943076848,-500.0,0.00048767,31]
[322306420,1712943076858,-500.0,0.00048767,31]
[322306421,1712943076868,-753.97,0.00048767,31]
[322306422,1712943076878,-500.0,0.00048767,31]
[322306423,1712943076887,-1116.32,0.00048767,31]
[322306424,1712943076897,-761.02,0.00048767,31]
[322306425,1712943076907,-500.0,0.00048767,31]
[322306426,1712943076916,-1571.11,0.00048767,31]
[322306427,1712943076926,-525.84,0.00048767,31]
[322306428,1712943076935,-500.0,0.00048767,31]
[322306429,1712943076951,-771.53,0.00048767,31]
[322306430,1712943076961,-688.0,0.00048767,31]
[322306431,1712943076973,-500.0,0.00048767,31]
[322306432,1712943076983,-768.13,0.00048767,31]
[322306433,1712943076993,-4824.5,0.00048767,31]
[322306434,1712943077002,-500.0,0.00048767,31]
[322306435,1712943077012,-1199.86,0.00048767,31]